bitfinex-derivatives/quotes_SOLF0:USTF0_20250117
["timestamp","ask_amount","ask_price","bid_price","bid_amount"]
[1737133632227,10.84492985,220.7,220.57,4.78]
[1737133632726,4.5296,220.67,220.63,4.5303]
[1737133633525,4.5294,220.68,220.63,4.5303]
[1737133633729,4.5556,220.76,220.62,10.84492985]
[1737133633730,15.40052985,220.76,220.62,10.84492985]
[1737133634020,4.5287,220.72,220.62,10.84492985]
[1737133634230,0.83252882,220.71,220.62,10.84492985]
[1737133634617,4.5285,220.73,220.63,3.019]
[1737133634816,15.40052985,220.76,220.63,3.019]
[1737133635018,0.83243456,220.75,220.66,4.5296]
[1737133635423,4.5287,220.72,220.66,4.5296]
[1737133636221,15.40052985,220.76,220.63,3.019]
[1737133636420,10.84492985,220.73,220.63,1.4457]
[1737133636633,10.84492985,220.73,220.59,10.84492985]
[1737133636826,10.84492985,220.7,220.58,1.4497]
[1737133637426,4.5304,220.64,220.59,4.5311]
[1737133638731,10.84492985,220.7,220.6,4.5309]
[1737133639634,10.84492985,220.7,220.61,4.5308]
[1737133639932,10.84492985,220.7,220.58,1.4497]
[1737133640137,4.5302,220.64,220.58,1.4497]
[1737133640627,10.84492985,220.7,220.6,4.5308]
[1737133641227,4.53,220.65,220.58,1.4497]
[1737133641533,4.53,220.65,220.61,4.5307]
[1737133642929,4.5296,220.68,220.63,4.5304]
[1737133643232,10.84492985,220.73,220.63,4.5304]
[1737133643437,0.83259334,220.72,220.63,4.5304]
[1737133644132,4.5297,220.67,220.63,4.5304]
[1737133644534,10.84492985,220.64,220.46,1.5221]
[1737133644733,10.84492985,220.64,220.48,10.84492985]
[1737133645131,10.84492985,220.64,220.49,4.78]
[1737133646829,10.84492985,220.64,220.51,10.84492985]
[1737133648833,4.5314,220.59,220.52,4.5325]
[1737133649331,10.84492985,220.64,220.52,4.5325]
[1737133650032,4.5317,220.57,220.52,4.5325]
[1737133650336,10.84492985,220.64,220.5,4.533]
[1737133651034,10.84492985,220.64,220.47,10.84492985]
[1737133651035,4.532,220.56,220.51,4.5328]
[1737133651740,10.84492985,220.64,220.5,10.84492985]
[1737133652042,10.84492985,220.64,220.53,4.5324]
[1737133652334,4.5314,220.59,220.53,4.5324]
[1737133652538,10.84492985,220.64,220.53,4.5324]
[1737133652738,10.84492985,220.64,220.5,10.84492985]
[1737133653045,4.5316,220.58,220.52,4.5326]
[1737133653935,4.5316,220.58,220.53,4.5324]
[1737133654338,4.5313,220.59,220.5,10.84492985]
[1737133654631,4.5313,220.59,220.54,4.5322]
[1737133654841,4.531,220.6,220.5,10.84492985]
[1737133656435,4.531,220.6,220.53,4.5324]
[1737133656640,4.531,220.6,220.5,10.84492985]
[1737133657042,4.5304,220.64,220.53,10.84492985]
[1737133657240,15.94395224,220.7,220.56,10.84492985]
[1737133657437,0.83281883,220.69,220.56,10.84492985]
[1737133657641,4.5299,220.66,220.6,4.531]
[1737133657841,4.5299,220.66,220.59,10.84492985]
[1737133658541,10.84492985,220.76,220.63,10.84492985]
[1737133659837,0.83246531,220.75,220.63,10.84492985]
[1737133660135,4.5289,220.71,220.65,4.53]
[1737133660540,10.84492985,220.76,220.63,10.84492985]
[1737133660741,4.5285,220.73,220.63,10.84492985]
[1737133661536,10.84492985,220.76,220.64,4.78]
[1737133662241,4.5279,220.76,220.66,10.84492985]
[1737133662437,73.2722953,220.82,220.69,10.84492985]
[1737133662649,0.83239261,220.81,220.72,10.84492985]
[1737133662842,4.5271,220.8,220.74,4.528]
[1737133663043,62.42736545,220.82,220.72,10.84492985]
[1737133663244,254.8168136,220.84,220.72,10.84492985]
[1737133663442,5.35867794,220.83,220.75,10.84492985]
[1737133663642,251.7351136,220.84,220.75,10.84492985]
[1737133663942,10.84492985,220.88,220.75,10.84492985]
[1737133664137,4.5263,220.83,220.77,4.5275]
[1737133664736,4.5263,220.83,220.73,4.78]
[1737133664936,10.84492985,220.88,220.73,4.78]
[1737133665139,5.35768498,220.87,220.75,10.84492985]
[1737133665342,0.83208498,220.86,220.78,4.5271]
[1737133665541,4.5259,220.85,220.75,10.84492985]
[1737133665842,1.5793,220.89,220.75,10.84492985]
[1737133666042,0.83207306,220.88,220.75,10.84492985]
[1737133667137,4.5259,220.85,220.79,4.5269]
[1737133669344,10.84492985,220.88,220.76,4.5275]
[1737133669546,0.83208236,220.87,220.76,4.5275]
[1737133669939,4.5264,220.83,220.76,4.5275]
[1737133670248,4.5264,220.83,220.75,10.84492985]
[1737133670249,10.84492985,220.88,220.77,4.5275]
[1737133670443,0.83208236,220.87,220.77,4.5275]
[1737133670844,0.83208236,220.87,220.75,10.84492985]
[1737133671339,4.5268,220.81,220.75,10.84492985]
[1737133671539,10.84492985,220.88,220.75,10.84492985]
[1737133671745,0.83208664,220.87,220.78,10.84492985]
[1737133671944,5.35788664,220.86,220.81,4.5267]
[1737133672145,1.5793,220.89,220.78,10.84492985]
[1737133672343,0.83207274,220.88,220.78,10.84492985]
[1737133672546,4.526,220.85,220.79,4.5269]
[1737133673951,4.5261,220.84,220.79,4.5269]
[1737133675449,4.5269,220.81,220.76,4.5277]
[1737133675647,4.5269,220.81,220.74,4.78]
[1737133675648,10.84492985,220.88,220.74,4.78]
[1737133676049,0.83208832,220.87,220.74,4.78]
[1737133676250,4.5271,220.79,220.74,9.3081]
[1737133676654,1.5793,220.89,220.77,4.5273]
[1737133677349,4.5265,220.82,220.75,10.84492985]
[1737133678155,1.5793,220.89,220.78,4.5273]
[1737133678351,0.83208603,220.88,220.78,10.84492985]
[1737133678753,1.5793,220.89,220.78,10.84492985]
[1737133679053,0.83207542,220.88,220.78,10.84492985]
[1737133681554,0.83207542,220.88,220.81,10.84492985]
[1737133681756,0.83207542,220.93,220.84,10.84492985]
[1737133681950,0.83184401,220.92,220.84,10.84492985]
[1737133682151,0.83184401,220.91,220.87,10.84492985]
[1737133682452,192.99916002,220.98,220.87,10.84492985]
[1737133682648,0.83171377,220.97,220.9,10.84492985]
[1737133683157,5.35511377,220.97,220.87,4.5254]
[1737133683350,0.83171377,220.96,220.88,10.84492985]
[1737133683553,1.5461,220.98,220.88,10.84492985]
[1737133683860,5.35528227,220.97,220.91,4.5246]
[1737133684058,0.83168227,220.96,220.91,4.5246]
[1737133684258,0.83168227,220.95,220.91,4.5246]
[1737133684456,10.84492985,221.01,220.91,4.5246]
[1737133684653,0.83169308,221.0,220.91,4.5246]
[1737133685260,4.5238,220.96,220.91,4.5246]
[1737133685459,0.83169308,220.95,220.91,4.5246]
[1737133686159,4.5238,220.96,220.91,4.5246]
[1737133686358,0.83169964,220.95,220.91,4.5246]
[1737133687154,4.5238,220.96,220.91,4.5246]
[1737133687557,188.49156002,221.04,220.92,4.76]
[1737133687859,188.49156002,221.04,220.94,10.84492985]
[1737133688257,0.8316778,221.03,220.97,10.84492985]
[1737133688561,1.6631933,221.03,220.97,10.84492985]
[1737133688756,0.8316778,221.03,220.97,10.84492985]
[1737133688957,0.8313975,221.02,220.97,10.84492985]
[1737133689360,0.8316778,221.03,220.99,4.5228]
[1737133689562,0.8316778,221.03,220.97,10.84492985]
[1737133689753,0.8316778,221.03,221.0,10.84492985]
[1737133690960,1.74688381,221.08,221.01,4.78]
[1737133691162,1.74688381,221.08,221.04,10.84492985]
[1737133692664,1.74688381,221.08,221.05,4.5218]
[1737133692857,1.74688381,221.08,221.04,10.84492985]
[1737133693263,1.74688381,221.08,221.07,4.5214]
[1737133693460,1.74688381,221.08,221.02,1.5678]
[1737133693661,1.74688381,221.08,221.04,10.84492985]
[1737133694455,188.49156002,221.19,221.07,10.84492985]
[1737133694661,188.49156002,221.19,221.15,10.84492985]
[1737133694863,188.49156002,221.19,221.15,15.64492985]
[1737133695063,188.49156002,221.19,221.18,15.36402985]
[1737133695467,188.49156002,221.28,221.18,15.36402985]
[1737133695664,0.8305251,221.27,221.18,15.36402985]
[1737133695855,0.83050772,221.26,221.2,4.5186]
[1737133696261,0.83050772,221.26,221.18,10.84492985]
[1737133696460,0.83050772,221.26,221.16,1.5712]
[1737133696661,10.84492985,221.29,221.16,1.5712]
[1737133696856,0.83050772,221.25,221.16,1.5712]
[1737133697057,0.83050772,221.24,221.18,10.84492985]
[1737133697362,10.84492985,221.32,221.18,10.84492985]
[1737133697666,4.517,221.29,221.21,15.36322985]
[1737133698061,4.517,221.29,221.22,4.5182]
[1737133699367,10.84492985,221.32,221.18,10.84492985]
[1737133699763,0.83047833,221.31,221.18,10.84492985]
[1737133699963,4.518,221.24,221.18,10.84492985]
[1737133700365,4.5187,221.2,221.15,10.84492985]
[1737133700563,10.84492985,221.29,221.15,10.84492985]
[1737133700763,1.4805,221.28,221.15,10.84492985]
[1737133701267,4.518,221.24,221.15,15.36462985]
[1737133701466,1.4315,221.27,221.15,15.36462985]
[1737133701668,1.4753,221.26,221.15,15.36462985]
[1737133701861,4.5186,221.21,221.15,15.36462985]
[1737133702265,4.5186,221.21,221.15,10.84492985]
[1737133702562,4.5184,221.22,221.15,10.84492985]
[1737133703270,4.5191,221.18,221.14,4.8]
[1737133703467,1.4753,221.26,221.14,4.8]
[1737133703770,4.5184,221.22,221.17,4.5191]
[1737133706665,1.4753,221.26,221.15,10.84492985]
[1737133706861,4.5188,221.2,221.15,15.36462985]
[1737133707065,0.83061092,221.19,221.14,4.8]
[1737133707265,0.83061092,221.18,221.14,4.8]
[1737133707668,0.83061092,221.17,221.14,4.8]
[1737133707865,12.32022985,221.26,221.14,1.13324717]
[1737133708162,4.5195,221.17,221.12,10.84492985]
[1737133708367,12.32022985,221.26,221.12,10.84492985]
[1737133708561,4.5192,221.18,221.13,4.52]
[1737133709065,0.83071051,221.17,221.13,4.52]
[1737133709264,4.5193,221.17,221.13,4.52]
[1737133709470,12.32022985,221.26,221.12,10.84492985]
[1737133709770,0.83070723,221.25,221.12,10.84492985]
[1737133709968,10.84492985,221.23,221.09,10.84492985]
[1737133710164,0.83070723,221.22,221.09,10.84492985]
[1737133710865,4.5192,221.18,221.09,10.84492985]
[1737133711067,0.83070723,221.17,221.09,10.84492985]
[1737133711269,0.83070723,221.16,221.09,10.84492985]
[1737133711471,4.5205,221.12,221.09,10.84492985]
[1737133711672,10.84492985,221.23,221.09,15.36582985]
[1737133711970,0.83079656,221.22,221.09,15.36582985]
[1737133712171,4.5203,221.13,221.09,15.36582985]
[1737133712368,10.84492985,221.23,221.09,15.36582985]
[1737133712563,0.83079486,221.22,221.09,15.36582985]
[1737133712964,4.5191,221.19,221.09,15.36582985]
[1737133713174,0.83079486,221.18,221.09,15.36582985]
[1737133713472,0.83079486,221.17,221.09,15.36582985]
[1737133713677,0.83079486,221.16,221.09,10.84492985]
[1737133713970,10.84492985,221.23,221.11,4.5205]
[1737133714167,4.5199,221.15,221.11,4.5205]
[1737133714370,10.84492985,221.23,221.11,4.5205]
[1737133714564,0.83079468,221.22,221.11,4.5205]
[1737133714869,0.83079818,221.21,221.11,4.5205]
[1737133715064,0.83079818,221.2,221.11,4.5205]
[1737133715271,1.4753,221.26,221.09,10.84492985]
[1737133715272,4.5204,221.12,221.09,15.36582985]
[1737133717273,4.5204,221.12,221.09,10.84492985]
[1737133717765,4.5204,221.12,221.08,4.5211]
[1737133717971,4.5207,221.11,221.07,4.5213]
[1737133718179,10.84492985,221.18,221.03,10.84492985]
[1737133718478,9.0367,221.22,221.03,10.84492985]
[1737133718479,10.84492985,221.15,221.03,10.84492985]
[1737133718677,0.83092143,221.14,221.0,12.38012985]
[1737133718876,2.29452143,221.14,221.0,12.38012985]
[1737133719073,4.5217,221.06,221.02,4.5224]
[1737133719690,4.5208,221.1,221.05,4.5218]
[1737133719984,1.4636,221.14,221.05,4.5218]
[1737133720176,0.83106908,221.13,221.03,15.36692985]
[1737133720677,0.83106908,221.13,221.03,10.84492985]
[1737133720978,10.84492985,221.12,221.0,10.84492985]
[1737133721183,0.83106908,221.11,221.0,10.84492985]
[1737133721385,4.5225,221.02,221.0,10.84492985]
[1737133721789,10.84492985,221.12,221.0,10.84492985]
[1737133721977,0.83120284,221.11,221.0,15.36752985]
[1737133722581,4.5222,221.04,221.0,15.36752985]
[1737133722886,10.84492985,221.12,221.0,10.84492985]
[1737133723185,4.5224,221.03,221.0,10.84492985]
[1737133723387,10.84492985,221.12,220.97,10.84492985]
[1737133723577,0.83127402,221.11,220.98,4.5232]
[1737133724387,4.5226,221.02,220.98,4.5232]
[1737133724776,4.5232,220.99,220.95,4.5238]
[1737133724982,10.84492985,221.08,220.94,10.84492985]
[1737133725184,3.94050859,221.07,220.94,10.84492985]
[1737133725383,4.5236,220.97,220.94,10.84492985]
[1737133725578,10.84492985,221.05,220.92,4.5244]
[1737133725785,2.37524351,221.04,220.91,95.48492985]
[1737133726087,0.83144351,221.03,220.91,100.00952985]
[1737133726292,10.84492985,221.02,220.91,84.64]
[1737133726585,0.83144351,221.01,220.91,89.1646]
[1737133726884,4.5232,220.98,220.91,89.1646]
[1737133727085,10.84492985,221.02,220.91,89.1646]
[1737133727287,0.83155466,221.01,220.91,89.1646]
[1737133727989,0.83155466,221.01,220.91,84.64]
[1737133728187,0.83155436,221.0,220.89,4.525]
[1737133728487,0.83155436,220.99,220.89,4.525]
[1737133728688,4.5245,220.92,220.88,15.37012985]
[1737133729087,10.84492985,220.99,220.85,10.84492985]
[1737133729283,3.82884815,220.98,220.85,10.84492985]
[1737133729484,10.84492985,220.96,220.84,1.5214]
[1737133729790,0.83164815,220.95,220.84,1.5214]
[1737133730589,0.83164815,220.95,220.85,10.84492985]
[1737133730794,2.9972,220.98,220.88,15.37012985]
[1737133730986,2.9972,220.98,220.88,10.84492985]
[1737133731291,4.524,220.95,220.89,4.5248]
[1737133731590,0.83163378,220.97,220.89,4.5248]
[1737133731891,4.5238,220.96,220.89,4.5248]
[1737133732190,2.9972,220.98,220.89,4.5248]
[1737133732390,0.83160944,220.97,220.89,4.5248]
[1737133732788,194.0,221.03,220.91,10.84492985]
[1737133733087,0.8315789,221.02,220.91,10.84492985]
[1737133733291,0.8315789,221.02,220.93,4.524]
[1737133733492,0.8315789,221.01,220.93,4.524]
[1737133733691,0.83150879,221.03,220.93,4.524]
[1737133733888,4.5234,220.98,220.93,4.524]
[1737133734184,1.5438,221.04,220.93,4.524]
[1737133734386,0.83149422,221.03,220.93,4.524]
[1737133734592,0.83149422,221.03,220.91,15.36942985]
[1737133734790,0.83149422,221.03,220.91,10.84492985]
[1737133735289,10.84492985,221.02,220.91,10.84492985]
[1737133735586,4.5232,220.98,220.91,10.84492985]
[1737133735790,10.84492985,221.02,220.91,10.84492985]
[1737133735991,0.83154371,221.01,220.91,10.84492985]
[1737133736192,10.84492985,221.02,220.91,10.84492985]
[1737133736392,0.83154354,221.01,220.91,10.84492985]
[1737133736891,0.83154057,221.0,220.88,10.84492985]
[1737133737092,11.67647042,220.99,220.88,10.84492985]
[1737133737394,10.84492985,220.96,220.85,10.84492985]
[1737133737586,0.83154057,220.95,220.85,10.84492985]
[1737133737792,4.5245,220.92,220.84,1.5214]
[1737133737992,10.84492985,220.96,220.84,1.5214]
[1737133738295,2.39359123,220.95,220.82,10.84492985]
[1737133738492,4.5258,220.86,220.82,15.37142985]
[1737133738791,3.125,220.95,220.82,10.84492985]
[1737133738992,0.83179313,220.94,220.82,10.84492985]
[1737133740084,4.5257,220.87,220.83,4.5263]
[1737133740485,4.5247,220.92,220.85,4.5257]
[1737133740691,1.4252,220.98,220.88,10.84492985]
[1737133740893,0.8317521,220.97,220.88,10.84492985]
[1737133741085,4.524,220.95,220.91,4.5245]
[1737133741992,4.524,220.95,220.9,4.5249]
[1737133742184,4.5232,220.99,220.9,4.5249]
[1737133742383,0.83156501,220.98,220.9,4.5249]
[1737133742584,13.90822985,221.02,220.91,15.36952985]
[1737133742784,4.5234,220.98,220.91,10.84492985]
[1737133743996,10.84492985,221.05,220.91,10.84492985]
[1737133744193,0.83154259,221.04,220.91,10.84492985]
[1737133744696,4.5238,220.96,220.92,4.5243]
[1737133744897,10.84492985,221.05,220.91,10.84492985]
[1737133745092,0.83155983,221.04,220.91,10.84492985]
[1737133746298,0.83155002,221.03,220.91,10.84492985]
[1737133746499,4.5237,220.96,220.92,4.5244]
[1737133746700,10.84492985,221.02,220.9,1.5216]
[1737133746997,0.83158991,221.01,220.89,10.8042]
[1737133747189,0.83158991,221.01,220.89,6.0242]
[1737133747592,4.5243,220.93,220.89,6.0242]
[1737133748202,10.84492985,220.99,220.85,15.37082985]
[1737133748397,10.84492985,220.96,220.82,17.07252985]
[1737133748602,0.83160102,220.95,220.82,17.07252985]
[1737133748796,4.5253,220.89,220.82,17.07252985]
[1737133748997,10.84492985,220.96,220.82,17.07252985]
[1737133749203,0.83175293,220.95,220.82,17.07252985]
[1737133750204,4.5247,220.92,220.84,4.5261]
[1737133750403,10.84492985,220.99,220.85,10.84492985]
[1737133750604,0.83176513,220.98,220.88,10.84492985]
[1737133750804,0.83176513,220.97,220.89,4.525]
[1737133750999,0.83176513,220.96,220.89,4.525]
[1737133751194,0.83176513,221.01,220.89,4.525]
[1737133751505,4.5244,220.93,220.89,4.525]
[1737133751701,199.33648987,221.02,220.88,10.84492985]
[1737133751896,4.5247,220.92,220.88,10.84492985]
[1737133752101,199.33648987,221.02,220.88,10.84492985]
[1737133752301,0.83163012,221.01,220.88,10.84492985]
[1737133752502,10.84492985,220.99,220.85,10.84492985]
[1737133752803,0.83163012,220.98,220.85,10.84492985]
[1737133753004,4.5254,220.88,220.85,10.84492985]
[1737133755503,4.5173,220.98,220.85,10.84492985]
[1737133755696,0.83175655,220.97,220.85,10.84492985]
[1737133755901,4.5251,220.89,220.85,15.37062985]
[1737133756099,4.5173,220.98,220.85,15.37062985]
[1737133756296,0.8317398,220.97,220.85,15.37062985]
[1737133756701,4.5251,220.9,220.85,15.37062985]
[1737133756902,251.32208002,221.0,220.88,10.84492985]
[1737133757102,4.5244,220.93,220.88,10.84492985]
[1737133757605,4.5244,220.93,220.88,15.37002985]
[1737133758003,251.32208002,221.0,220.88,10.84492985]
[1737133758204,0.83161473,220.99,220.88,10.84492985]
[1737133759007,189.32317475,220.99,220.88,10.84492985]
[1737133759306,0.83166231,220.98,220.88,15.37002985]
[1737133760012,0.83164656,220.97,220.88,15.37002985]
[1737133760307,0.83164656,220.96,220.89,4.5251]
[1737133760504,188.49156002,220.99,220.89,4.5251]
[1737133760706,0.83164002,220.98,220.89,4.5251]
[1737133761204,4.5245,220.93,220.89,4.5251]
[1737133761710,188.49156002,220.99,220.89,4.5251]
[1737133761905,4.5245,220.92,220.89,4.5251]
[1737133762314,4.5245,220.92,220.88,15.37022985]
[1737133763208,188.49156002,220.97,220.85,10.84492985]
[1737133763510,0.83166339,220.96,220.85,10.84492985]
[1737133763906,4.5253,220.89,220.85,10.84492985]
[1737133764112,10.84492985,220.96,220.82,12.29252985]
[1737133764313,0.83179667,220.95,220.82,12.29252985]
[1737133764508,4.5259,220.86,220.82,16.81902985]
[1737133765010,10.84492985,220.96,220.82,16.81902985]
[1737133765212,0.83181871,220.95,220.82,16.81902985]
[1737133766113,4.5261,220.85,220.82,12.29252985]
[1737133769716,4.526,220.85,220.82,12.29252985]
[1737133770605,4.5262,220.84,220.82,12.29252985]
[1737133771313,4.5259,220.85,220.82,12.29252985]
[1737133771613,188.49156002,220.92,220.82,12.29252985]
[1737133773716,4.5251,220.89,220.82,16.81902985]
[1737133773907,188.49156002,220.92,220.82,16.81902985]
[1737133774415,0.83185745,220.91,220.82,16.81902985]
[1737133774606,10.84492985,220.86,220.73,4.5284]
[1737133774809,10.84492985,220.83,220.71,10.84492985]
[1737133775416,4.5277,220.77,220.71,10.84492985]
[1737133775615,10.84492985,220.83,220.71,10.84492985]
[1737133775912,1.66447501,220.82,220.68,18.70622985]
[1737133776211,0.83223751,220.82,220.68,18.70622985]
[1737133776414,10.84492985,220.8,220.68,3.1213]
[1737133776813,4.5286,220.73,220.68,13.96622985]
[1737133777115,10.84492985,220.82,220.68,13.96622985]
[1737133777315,0.83228176,220.81,220.68,13.96622985]
[1737133777515,10.84492985,220.82,220.68,13.96622985]
[1737133778012,10.84492985,220.79,220.68,13.96622985]
[1737133778910,10.84492985,220.79,220.65,15.58492985]
[1737133779113,12.41472985,220.79,220.65,15.58492985]
[1737133779317,10.84492985,220.76,220.62,15.36812985]
[1737133779517,0.83243335,220.75,220.62,20.10812985]
[1737133779818,4.5298,220.66,220.62,20.10812985]
[1737133780318,10.84492985,220.76,220.62,20.10812985]
[1737133780515,0.83255468,220.75,220.62,20.10812985]
[1737133780816,0.83255468,220.75,220.62,15.36812985]
[1737133781013,0.83255468,220.75,220.62,12.37612985]
[1737133781214,10.84492985,220.73,220.6,10.72727229]
[1737133781517,4.5293,220.69,220.6,10.72727229]
[1737133781713,10.84492985,220.73,220.6,10.72727229]
[1737133781920,0.83270849,220.72,220.6,10.72727229]
[1737133782315,4.5293,220.69,220.6,15.25827229]
[1737133782515,10.84492985,220.73,220.6,10.72727229]
[1737133782721,0.83272194,220.72,220.6,10.72727229]
[1737133783515,4.5299,220.66,220.61,4.5306]
[1737133783719,4.5299,220.66,220.62,10.84492985]
[1737133784020,10.84492985,220.73,220.6,10.72727229]
[1737133784215,0.83269346,220.72,220.6,10.72727229]
[1737133784818,4.5304,220.63,220.6,10.72727229]
[1737133785919,10.84492985,220.73,220.6,10.72727229]
[1737133786116,10.84492985,220.7,220.6,10.72727229]
[1737133786422,10.84492985,220.67,220.56,12.37612985]
[1737133786721,0.83281328,220.66,220.56,12.37612985]
[1737133787223,0.83281328,220.66,220.54,1.5713]
[1737133788623,0.83294983,220.65,220.54,1.5713]
[1737133788824,0.83294983,220.64,220.54,1.5713]
[1737133789115,4.5318,220.57,220.53,10.84492985]
[1737133789521,194.0,220.83,220.56,10.84492985]
[1737133789719,0.83251534,220.79,220.67,10.84492985]
[1737133789923,251.32208002,220.8,220.7,10.84492985]
[1737133790122,10.84492985,220.77,220.68,6.1449]
[1737133790328,0.8323427,220.76,220.63,10.84492985]
[1737133791223,0.83253585,220.75,220.63,10.84492985]
[1737133791424,0.83253585,220.74,220.63,10.84492985]
[1737133791627,10.84492985,220.77,220.63,10.84492985]
[1737133791820,4.5285,220.72,220.63,10.84492985]
[1737133792026,10.84492985,220.74,220.62,4.5304]
[1737133792327,0.83254455,220.73,220.62,4.5304]
[1737133792524,4.5288,220.71,220.61,9.2508]
[1737133792729,4.5288,220.71,220.61,4.72]
[1737133793626,4.5285,220.72,220.63,4.5304]
[1737133795931,4.5285,220.72,220.64,4.5302]
[1737133797028,10.84492985,220.74,220.64,4.5302]
[1737133797331,4.5288,220.71,220.65,4.53]
[1737133798532,4.5288,220.71,220.66,4.5298]
[1737133799528,4.5288,220.71,220.67,4.5295]
[1737133800628,4.529,220.7,220.67,4.5295]
[1737133800830,10.84492985,220.74,220.68,4.5293]
[1737133801028,4.5287,220.72,220.68,4.5293]
[1737133801330,10.84492985,220.74,220.61,4.72]
[1737133801631,4.5289,220.71,220.66,4.5297]
[1737133802032,4.5289,220.71,220.61,4.72]
[1737133802235,4.5289,220.71,220.67,4.5296]
[1737133802430,10.84492985,220.74,220.67,4.5296]
[1737133802632,0.83254858,220.73,220.67,4.5296]
[1737133803130,5.36094858,220.73,220.7,4.5289]
[1737133803333,10.84492985,220.77,220.63,10.84492985]
[1737133803532,0.8325102,220.76,220.63,10.84492985]
[1737133803725,4.5281,220.75,220.71,4.5286]
[1737133804334,10.84492985,220.77,220.71,4.5286]
[1737133804529,4.5282,220.74,220.71,4.5286]
[1737133804928,10.84492985,220.77,220.64,10.84492985]
[1737133805133,10.84492985,220.74,220.61,15.56492985]
[1737133805330,0.83243604,220.73,220.61,15.56492985]
[1737133805532,10.84492985,220.77,220.7,4.5289]
[1737133805730,0.83246072,220.76,220.61,15.56492985]
[1737133806136,4.5284,220.73,220.69,4.529]
[1737133807731,4.5281,220.74,220.7,4.5288]
[1737133808331,4.5281,220.74,220.7,4.0288]
[1737133808634,4.5284,220.73,220.7,4.0288]
[1737133809337,4.5286,220.72,220.69,4.5291]
[1737133810632,4.5293,220.69,220.62,4.5304]
[1737133810838,10.84492985,220.74,220.6,10.84492985]
[1737133811040,0.83258064,220.73,220.6,10.84492985]
[1737133811431,4.5293,220.69,220.64,4.5301]
[1737133811834,10.84492985,220.77,220.63,10.84492985]
[1737133812039,4.5284,220.73,220.63,10.84492985]
[1737133812639,4.5279,220.76,220.66,10.84492985]
[1737133812835,4.5279,220.76,220.67,1.4702]
[1737133813034,10.84492985,220.8,220.67,1.4702]
[1737133813236,0.83241541,220.79,220.67,1.4702]
[1737133813636,4.5281,220.75,220.7,4.5288]
[1737133814036,10.84492985,220.8,220.7,4.5288]
[1737133814537,0.83240231,220.79,220.7,4.5288]
[1737133814940,4.5281,220.75,220.7,4.5288]
[1737133815135,10.84492985,220.8,220.7,4.5288]
[1737133815336,188.49156002,220.78,220.7,4.5288]
[1737133815639,0.83239686,220.77,220.7,4.5288]
[1737133816039,4.5281,220.75,220.7,4.5288]
[1737133816641,188.49156002,220.78,220.69,10.84492985]
[1737133816840,4.5277,220.77,220.69,10.84492985]
[1737133817938,4.5278,220.76,220.72,4.5284]
[1737133819544,4.528,220.75,220.72,4.5284]
[1737133822849,188.49156002,220.82,220.69,10.84492985]
[1737133823050,4.5273,220.79,220.72,10.84492985]
[1737133823246,188.49156002,220.82,220.72,10.84492985]
[1737133823447,4.5269,220.8,220.75,4.5279]
[1737133823752,188.49156002,220.82,220.79,6.92896655]
[1737133823947,4.5263,220.84,220.79,11.45586655]
[1737133824252,6.92896655,220.8,220.75,4.7]
[1737133824551,4.5279,220.76,220.72,11.45746655]
[1737133825548,4.528,220.75,220.71,4.5287]
[1737133828555,4.5278,220.76,220.72,4.5285]
[1737133828850,4.5278,220.76,220.69,15.53126688]
[1737133829253,4.5278,220.76,220.71,4.5287]
[1737133831561,10.83126688,220.8,220.68,10.7375]
[1737133831754,10.83126688,220.8,220.68,6.2082]
[1737133832156,10.83126688,220.8,220.68,1.5082]
[1737133832350,0.83234991,220.79,220.68,1.5082]
[1737133832757,10.83126688,220.77,220.64,4.68]
[1737133833158,10.83126688,220.77,220.63,10.83126688]
[1737133833859,10.83126688,220.77,220.65,4.5299]
[1737133834757,4.5291,220.7,220.65,4.5299]
[1737133836362,4.5292,220.69,220.65,4.5299]
[1737133837762,4.5289,220.71,220.66,4.5298]
[1737133838067,10.83126688,220.77,220.63,10.83126688]
[1737133838260,10.83126688,220.77,220.65,4.5298]
[1737133838858,10.83126688,220.74,220.63,10.83126688]
[1737133839057,10.83126688,220.74,220.61,6.71797285]
[1737133839261,10.83126688,220.71,220.61,6.71797285]
[1737133839463,4.5305,220.63,220.61,6.71797285]
[1737133840162,4.5302,220.64,220.6,4.531]
[1737133841973,1.5052,220.7,220.57,15.51126688]
[1737133842173,1.5052,220.7,220.6,10.83126688]
[1737133842672,4.5294,220.68,220.64,4.5301]